bitfinex-derivatives/quotes_BTCF0:USTF0_20250810
["timestamp","ask_amount","ask_price","bid_price","bid_amount"]
[1754803255424,0.6017894,118170.0,118160.0,1.03302402]
[1754803255624,0.6017894,118170.0,118160.0,0.9568358]
[1754803256024,0.6017894,118170.0,118160.0,1.03302419]
[1754803256323,0.6017894,118170.0,118160.0,0.9568358]
[1754803256524,0.6017894,118170.0,118160.0,0.9549458]
[1754803257226,0.94229384,118170.0,118160.0,0.9549458]
[1754803257429,0.94229384,118170.0,118160.0,1.0606534]
[1754803258622,0.94229384,118170.0,118160.0,0.8948276]
[1754803258830,0.94229384,118170.0,118160.0,1.0586234]
[1754803259027,0.94229384,118170.0,118160.0,1.0616534]
[1754803259729,0.6017894,118170.0,118160.0,1.0616534]
[1754803259930,0.94229384,118170.0,118160.0,1.0616534]
[1754803260431,0.5539494,118170.0,118160.0,1.47999021]
[1754803260624,0.5051394,118170.0,118160.0,1.47999021]
[1754803260815,0.1206094,118170.0,118160.0,1.47999021]
[1754803261221,0.1440394,118170.0,118160.0,1.47999021]
[1754803263429,0.90899384,118170.0,118160.0,0.2727334]
[1754803263731,0.94199384,118170.0,118160.0,1.0611734]
[1754803264631,0.94199384,118170.0,118160.0,0.9765576]
[1754803264833,0.94199384,118170.0,118160.0,1.0611734]
[1754803265922,0.94199384,118170.0,118160.0,0.9554658]
[1754803267134,0.94199384,118170.0,118160.0,0.87085]
[1754803269228,0.94199384,118170.0,118160.0,0.9554656]
[1754803271039,0.6014894,118170.0,118160.0,0.9554656]
[1754803271436,0.2406894,118170.0,118160.0,0.9554656]
[1754803271631,0.2406894,118170.0,118160.0,1.03354534]
[1754803271832,0.1602294,118170.0,118160.0,1.37215978]
[1754803272037,0.1602294,118170.0,118160.0,1.37404978]
[1754803272236,0.1920294,118170.0,118160.0,1.37404978]
[1754803272438,0.2384894,118170.0,118160.0,1.37404978]
[1754803272739,0.1206094,118170.0,118160.0,1.44999215]
[1754803273237,0.1206094,118170.0,118160.0,1.47951001]
[1754803273440,0.1206094,118170.0,118160.0,1.37380241]
[1754803273832,0.1206094,118170.0,118160.0,1.47951001]
[1754803274135,0.1446194,118170.0,118160.0,1.47951001]
[1754803274338,0.1446194,118170.0,118160.0,1.37380241]
[1754803274732,0.1206094,118170.0,118160.0,1.37380241]
[1754803275240,0.1446194,118170.0,118160.0,1.47951001]
[1754803275439,0.1206094,118170.0,118160.0,1.47951001]
[1754803275641,0.036,118170.0,118160.0,1.84031001]
[1754803275939,0.03411,118170.0,118160.0,2.18081445]
[1754803276337,0.01928267,118180.0,118160.0,2.38537665]
[1754803276539,0.01908267,118180.0,118170.0,0.45158284]
[1754803276739,0.01908267,118180.0,118170.0,0.55749044]
[1754803277141,0.01908267,118180.0,118170.0,0.91829044]
[1754803277435,0.10368397,118180.0,118170.0,0.91829044]
[1754803277636,0.02508267,118180.0,118170.0,0.99423281]
[1754803277838,0.04508267,118180.0,118170.0,0.99423281]
[1754803278944,0.15369397,118180.0,118170.0,0.65372837]
[1754803279146,0.04508267,118180.0,118170.0,0.99423281]
[1754803279843,0.12968397,118180.0,118170.0,0.99423281]
[1754803280039,0.15369397,118180.0,118170.0,0.65372837]
[1754803280345,0.24725397,118180.0,118170.0,0.54808033]
[1754803280540,0.93400841,118180.0,118170.0,0.10267193]
[1754803280745,0.94855841,118180.0,118170.0,0.0942985]
[1754803280950,0.94855841,118180.0,118170.0,0.18585043]
[1754803281243,0.94855841,118180.0,118170.0,0.17030043]
[1754803281445,0.94855841,118180.0,118170.0,0.10035193]
[1754803281645,0.94855841,118180.0,118170.0,0.10124193]
[1754803281947,0.94855841,118180.0,118170.0,0.18585023]
[1754803282136,0.94855841,118180.0,118170.0,0.10124193]
[1754803282333,0.94855841,118180.0,118170.0,0.08569193]
[1754803284148,0.94855841,118180.0,118170.0,0.07620193]
[1754803284445,0.94855841,118180.0,118170.0,0.0002]
[1754803290138,0.0943684,118170.0,118160.0,0.0001]
[1754803290343,0.2021856,118160.0,118150.0,0.78838]
[1754803290545,0.90349004,118160.0,118150.0,0.78828]
[1754803290937,0.2021927,118150.0,118140.0,1.1701]
[1754803291137,0.90349714,118150.0,118140.0,1.95832]
[1754803291343,0.90349714,118150.0,118140.0,1.97387]
[1754803291740,0.91212749,118150.0,118140.0,1.97387]
[1754803292152,0.90349714,118150.0,118140.0,1.97387]
[1754803292541,0.90549714,118150.0,118140.0,1.98387]
[1754803292746,0.5649927,118150.0,118140.0,1.98387]
[1754803292946,0.90549714,118150.0,118140.0,1.98387]
[1754803293143,0.90649714,118150.0,118140.0,1.99087]
[1754803294250,0.90649714,118150.0,118140.0,1.97532]
[1754803294843,0.90649714,118150.0,118140.0,1.187]
[1754803295044,0.90649714,118150.0,118140.0,1.97536]
[1754803295440,0.90649714,118150.0,118140.0,0.017]
[1754803297951,0.97435658,118150.0,118140.0,0.017]
[1754803300753,0.1094101,118140.0,118130.0,0.00024]
[1754803300949,0.90375454,118140.0,118130.0,0.00014]
[1754803301345,0.92231444,118140.0,118130.0,0.00014]
[1754803302052,0.92331444,118140.0,118130.0,0.00714]
[1754803302260,0.92631444,118140.0,118130.0,0.00814]
[1754803302862,0.92831444,118140.0,118130.0,0.00214]
[1754803307450,0.92831444,118140.0,118130.0,0.06658]
[1754803308765,0.58781,118140.0,118130.0,0.22715967]
[1754803308967,0.53875,118140.0,118130.0,0.56806411]
[1754803309267,0.13217,118140.0,118130.0,0.92886411]
[1754803310755,0.13217,118140.0,118130.0,0.98748074]
[1754803311759,0.0475399,118140.0,118130.0,0.98748074]
[1754803312066,0.0245599,118140.0,118130.0,1.15677674]
[1754803312268,0.10919,118140.0,118130.0,1.42577674]
[1754803312658,0.13217,118140.0,118130.0,1.42577674]
[1754803312854,0.13217,118140.0,118130.0,1.50177867]
[1754803314659,0.22701,118140.0,118130.0,2.21401674]
[1754803314868,0.22701,118140.0,118130.0,1.37659967]
[1754803316663,0.21239,118140.0,118130.0,1.37679967]
[1754803316863,0.17795,118140.0,118130.0,1.37679967]
[1754803317063,0.14725,118140.0,118130.0,1.37679967]
[1754803317567,0.14725,118140.0,118130.0,1.41512074]
[1754803318176,0.18169,118140.0,118130.0,1.01599967]
[1754803318480,0.58781,118140.0,118130.0,0.9398573]
[1754803318666,0.22701,118140.0,118130.0,0.9398573]
[1754803319763,0.58781,118140.0,118130.0,0.9398573]
[1754803320464,0.22701,118140.0,118130.0,0.9398573]
[1754803321469,0.58781,118140.0,118130.0,0.9398573]
[1754803322169,0.22701,118140.0,118130.0,0.9398573]
[1754803323171,0.58781,118140.0,118130.0,0.9398573]
[1754803323962,0.58781,118140.0,118130.0,0.85522]
[1754803324168,0.58781,118140.0,118130.0,0.79995]
[1754803324461,0.98693107,118140.0,118130.0,0.7907]
[1754803325360,0.98693107,118140.0,118130.0,0.00234]
[1754803325563,0.98693107,118140.0,118130.0,0.79066]
[1754803327172,0.58781,118140.0,118130.0,0.79066]
[1754803327475,0.98693107,118140.0,118130.0,0.00234]
[1754803329066,0.49297,118140.0,118130.0,0.62565004]
[1754803329271,0.49297,118140.0,118130.0,0.22672897]
[1754803329469,0.13217,118140.0,118130.0,0.22672897]
[1754803329671,0.18181,118140.0,118130.0,0.22672897]
[1754803329871,0.22839,118140.0,118130.0,0.1507866]
[1754803330772,0.14771,118140.0,118130.0,0.1507866]
[1754803331080,0.1136101,118140.0,118130.0,0.1507866]
[1754803331671,0.1327257,118140.0,118130.0,0.1507866]
[1754803332276,0.1327257,118140.0,118130.0,0.54990767]
[1754803332780,0.1327257,118140.0,118130.0,0.49142584]
[1754803333077,0.1136101,118140.0,118130.0,0.5083082]
[1754803333275,0.1136101,118140.0,118130.0,0.94505057]
[1754803333486,0.0906301,118140.0,118130.0,0.94505057]
[1754803333680,0.0906301,118140.0,118130.0,1.0210525]
[1754803333880,0.1152601,118140.0,118130.0,1.0210525]
[1754803336082,0.1152601,118140.0,118130.0,0.94941326]
[1754803336477,0.1152601,118140.0,118130.0,1.2900525]
[1754803336674,0.03063,118140.0,118130.0,1.2900525]
[1754803336878,0.0906296,118140.0,118130.0,1.21405057]
[1754803337282,0.006,118140.0,118130.0,1.21405057]
[1754803337772,0.006,118140.0,118130.0,1.31975817]
[1754803340777,0.006,118140.0,118130.0,1.48905417]
[1754803340993,0.0002,118150.0,118140.0,0.48022854]
[1754803341181,0.554867,118160.0,118150.0,0.1395822]
[1754803341382,0.554667,118160.0,118150.0,0.57391255]
[1754803341982,0.554667,118160.0,118150.0,0.23327331]
[1754803342186,0.554667,118160.0,118150.0,0.57391255]
[1754803342384,0.638597,118160.0,118150.0,0.58252291]
[1754803342592,0.661887,118160.0,118150.0,0.57391255]
[1754803342885,1.34316548,118160.0,118150.0,0.86444157]
[1754803343095,1.34316548,118160.0,118150.0,0.07624157]
[1754803343398,1.00252624,118160.0,118150.0,0.0002]
[1754803344297,1.00852624,118160.0,118150.0,0.0002]
[1754803348793,0.667887,118160.0,118150.0,0.02169]
[1754803348997,0.667887,118160.0,118150.0,0.55636361]
[1754803349204,0.667887,118160.0,118150.0,0.13110237]
[1754803349600,0.667887,118160.0,118150.0,0.11175237]
[1754803349790,1.00852624,118160.0,118150.0,0.11175237]
[1754803351797,1.00852624,118160.0,118150.0,0.19637437]
[1754803352104,0.667887,118160.0,118150.0,0.21572437]
[1754803353500,0.667887,118160.0,118150.0,0.55636361]
[1754803353692,0.667887,118160.0,118150.0,0.21572437]
[1754803354094,0.667887,118160.0,118150.0,0.0002]
[1754803354295,1.00852624,118160.0,118150.0,0.0002]
[1754803356402,1.34916548,118160.0,118150.0,0.0002]
[1754803356601,1.00852624,118160.0,118150.0,0.0002]
[1754803357297,0.667887,118160.0,118150.0,0.0002]
[1754803357496,1.00852624,118160.0,118150.0,0.0002]
[1754803358202,0.667887,118160.0,118150.0,0.0002]
[1754803358396,0.11718,118150.0,118140.0,0.34514157]
[1754803358596,0.92173375,118150.0,118140.0,0.34504157]
[1754803358793,0.92173375,118150.0,118140.0,0.269]
[1754803359194,0.58951377,118150.0,118140.0,0.269]
[1754803359396,0.93015301,118150.0,118140.0,0.269]
[1754803359593,1.00609186,118150.0,118140.0,0.001]
[1754803359899,1.01209186,118150.0,118140.0,0.001]
[1754803360099,0.2018091,118140.0,118130.0,0.00024]
[1754803360396,0.90324834,118140.0,118130.0,0.00014]
[1754803360801,0.5626091,118140.0,118130.0,0.02664]
[1754803361100,0.5626091,118140.0,118130.0,0.03636]
[1754803361903,0.5696091,118140.0,118130.0,0.03636]
[1754803362103,0.5696091,118140.0,118130.0,0.11240157]
[1754803362903,0.5696091,118140.0,118130.0,0.03636]
[1754803363695,0.2088091,118140.0,118130.0,0.03636]
[1754803363994,0.2088091,118140.0,118130.0,0.58669314]
[1754803364595,0.2088091,118140.0,118130.0,0.94749314]
[1754803365204,0.2128091,118140.0,118130.0,0.94749314]
[1754803366300,0.1334591,118140.0,118130.0,1.02343551]
[1754803366502,0.1184291,118140.0,118130.0,0.99382415]
[1754803366707,0.1184291,118140.0,118130.0,0.91772791]
[1754803366906,0.011,118140.0,118130.0,0.91772791]
[1754803367104,0.1184291,118140.0,118130.0,0.91772791]
[1754803367414,0.1184291,118140.0,118130.0,1.02343551]
[1754803368200,0.1184291,118140.0,118130.0,0.91772791]
[1754803368402,0.5390994,118160.0,118150.0,0.108752]
[1754803368602,0.1878894,118160.0,118150.0,1.35183704]
[1754803368909,0.2017994,118160.0,118150.0,1.27575124]
[1754803369508,0.2077994,118160.0,118150.0,1.27575124]
[1754803370004,0.2137994,118160.0,118150.0,1.27675124]
[1754803370209,0.0348,118160.0,118150.0,1.42877941]
[1754803370709,0.0348,118160.0,118150.0,1.78957941]
[1754803371101,0.012,118160.0,118150.0,1.71349361]
[1754803371301,0.0348,118160.0,118150.0,1.82002021]
[1754803372408,0.0348,118160.0,118150.0,1.71349361]
[1754803372810,0.0348,118160.0,118150.0,1.82002021]
[1754803373306,0.012,118160.0,118150.0,2.99054021]
[1754803373516,0.006,118160.0,118150.0,3.17715889]
[1754803373703,0.008,118160.0,118150.0,3.17805151]
[1754803374611,0.30493188,118180.0,118170.0,0.1087376]
[1754803374800,0.24747188,118180.0,118170.0,1.97799172]
[1754803375007,0.30493188,118180.0,118170.0,1.70899172]
[1754803375211,0.286392,118180.0,118170.0,1.72591362]
[1754803375407,0.03783,118180.0,118170.0,1.72591362]
[1754803375613,0.0228,118180.0,118170.0,1.80185599]
[1754803376111,0.1073934,118190.0,118180.0,0.1087306]
[1754803376312,0.1073934,118190.0,118180.0,0.44936984]
[1754803376907,0.1413534,118190.0,118180.0,0.44936984]
[1754803377107,0.1415534,118190.0,118180.0,0.44956984]
[1754803377309,0.1485534,118190.0,118180.0,0.45056984]
[1754803377615,0.1635834,118190.0,118180.0,0.45056984]
[1754803377810,0.1675834,118190.0,118180.0,0.45156984]
[1754803378017,0.2129734,118190.0,118180.0,0.45156984]
[1754803378525,0.2129734,118190.0,118180.0,0.1109306]
[1754803378918,0.2129734,118190.0,118180.0,0.11934142]
[1754803379116,0.2129734,118190.0,118180.0,0.45998066]
[1754803381812,0.2129734,118190.0,118180.0,0.1109306]
[1754803382212,0.2129734,118190.0,118180.0,0.45156984]
[1754803383313,0.2129734,118190.0,118180.0,0.1109306]
[1754803383714,0.2129734,118190.0,118180.0,0.45156984]
[1754803384117,0.2129734,118190.0,118180.0,0.1109306]
[1754803384318,0.2129734,118190.0,118180.0,0.45156984]
[1754803385221,0.5737734,118190.0,118180.0,0.0868005]
[1754803385523,0.2129734,118190.0,118180.0,0.9074805]
[1754803385722,0.5737734,118190.0,118180.0,0.9306205]
[1754803385915,0.5737734,118190.0,118180.0,1.27125974]
[1754803387222,0.5737734,118190.0,118180.0,1.18665924]
[1754803387611,0.5737734,118190.0,118180.0,1.27125974]
[1754803388014,0.2129734,118190.0,118180.0,1.27125974]
[1754803388216,0.5737734,118190.0,118180.0,1.25718974]
[1754803388419,0.5737734,118190.0,118180.0,1.27125974]
[1754803388824,0.2129734,118190.0,118180.0,1.27125974]
[1754803390125,0.5737734,118190.0,118180.0,0.9306205]
[1754803390325,0.5737734,118190.0,118180.0,0.84602]
[1754803390719,0.5737734,118190.0,118180.0,0.9306204]
[1754803391517,0.5737734,118190.0,118180.0,0.9074804]
[1754803391716,0.5737734,118190.0,118180.0,0.9215504]
[1754803391921,0.5737734,118190.0,118180.0,0.9306204]
[1754803392620,0.5737734,118190.0,118180.0,0.84602]
[1754803392823,0.5737734,118190.0,118180.0,0.9299405]
[1754803394140,0.5737734,118190.0,118180.0,0.84534]
[1754803394738,0.5737734,118190.0,118180.0,0.9299405]
[1754803395239,0.2129734,118190.0,118180.0,0.9299405]
[1754803395542,0.5737734,118190.0,118180.0,0.9299405]
[1754803396541,0.5737734,118190.0,118180.0,0.84534]
[1754803396743,0.5737734,118190.0,118180.0,1.18597924]
[1754803397240,0.5737734,118190.0,118180.0,1.17190924]
[1754803397438,0.5737734,118190.0,118180.0,0.84534]
[1754803398043,0.5737734,118190.0,118180.0,0.9299405]
[1754803398436,0.5737734,118190.0,118180.0,0.84534]
[1754803399243,0.91441264,118190.0,118180.0,0.91784237]
[1754803399539,0.91441264,118190.0,118180.0,0.0022]
[1754803399932,0.91441264,118190.0,118180.0,0.81848]
[1754803401439,0.91441264,118190.0,118180.0,0.0022]
[1754803401644,0.91441264,118190.0,118180.0,0.81836]
[1754803403147,1.08363664,118190.0,118180.0,0.0022]
[1754803403337,1.48791189,118190.0,118170.0,0.8155]
[1754803403536,1.48791189,118190.0,118170.0,0.0001]
[1754803403537,0.90156974,118180.0,118170.0,0.0001]
[1754803403738,0.2001376,118170.0,118160.0,0.81474]
[1754803403937,0.90157684,118170.0,118160.0,0.81464]
[1754803405041,0.2001448,118160.0,118150.0,0.81426]
[1754803405241,0.90158404,118160.0,118150.0,0.81416]
[1754803406538,0.91014057,118160.0,118150.0,0.81416]
[1754803406948,0.90258404,118160.0,118150.0,0.81516]
[1754803407546,0.5619448,118160.0,118150.0,0.8383]
[1754803407846,0.90558404,118160.0,118150.0,0.8383]
[1754803408045,0.90958404,118160.0,118150.0,0.8393]
[1754803410643,0.5551348,118160.0,118150.0,0.99986427]
[1754803410844,0.5689448,118160.0,118150.0,0.99986427]
[1754803411945,0.5689448,118160.0,118150.0,0.91524237]
[1754803412146,0.5689448,118160.0,118150.0,0.99986427]
[1754803412551,0.5689448,118160.0,118150.0,0.91524237]
[1754803415542,0.90958404,118160.0,118150.0,0.91524237]
[1754803416451,0.5689448,118160.0,118150.0,0.91524237]
[1754803416638,0.90958404,118160.0,118150.0,0.91524237]
[1754803418851,0.5689448,118160.0,118150.0,0.91524237]
[1754803419052,0.90958404,118160.0,118150.0,0.91524237]
[1754803421549,0.5689448,118160.0,118150.0,0.99986427]
[1754803421859,0.5689448,118160.0,118150.0,1.34050351]
[1754803421860,0.5576248,118160.0,118150.0,1.34050351]
[1754803422155,0.5153948,118160.0,118150.0,1.26476114]
[1754803422353,0.5153948,118160.0,118150.0,0.9241219]
[1754803422547,0.5483648,118160.0,118150.0,0.9241219]
[1754803422941,0.5578248,118160.0,118150.0,0.9241219]
[1754803423141,0.5716248,118160.0,118150.0,0.9241219]
[1754803423743,0.5716248,118160.0,118150.0,0.93243902]
[1754803423950,0.0928148,118160.0,118150.0,1.70982063]
[1754803424147,0.1154748,118160.0,118150.0,1.36918139]
[1754803424347,0.0082,118160.0,118150.0,1.70982063]
[1754803424546,0.0928151,118160.0,118150.0,1.70982063]
[1754803424852,0.1154751,118160.0,118150.0,1.70982063]
[1754803425448,0.1154751,118160.0,118150.0,0.4707619]
[1754803425653,0.1968351,118160.0,118150.0,0.9250019]
[1754803425852,0.55127434,118160.0,118150.0,0.84038]
[1754803426046,0.91207434,118160.0,118150.0,0.84038]
[1754803426447,0.5714351,118160.0,118150.0,0.84038]
[1754803426753,0.5714351,118160.0,118150.0,0.9250023]
[1754803427851,0.5714351,118160.0,118150.0,0.84038]
[1754803428161,0.91207434,118160.0,118150.0,0.91632237]
[1754803432255,0.91207434,118160.0,118150.0,0.81664]
[1754803433355,0.91207434,118160.0,118150.0,0.83956]
[1754803439165,0.2024423,118150.0,118140.0,0.83518]
[1754803439352,0.90388154,118150.0,118140.0,0.00915]
[1754803439661,0.90388154,118150.0,118140.0,0.83504]
[1754803439851,0.5632423,118150.0,118140.0,0.83504]
[1754803440051,0.90388154,118150.0,118140.0,0.83504]
[1754803440456,0.90388154,118150.0,118140.0,0.83604]
[1754803440759,0.90888154,118150.0,118140.0,0.83704]
[1754803440955,0.97625358,118150.0,118140.0,0.83704]
[1754803441160,0.63561434,118150.0,118140.0,0.83704]
[1754803441361,0.97625358,118150.0,118140.0,0.83704]
[1754803443262,0.63561434,118150.0,118140.0,0.83704]
[1754803443456,0.97625358,118150.0,118140.0,0.83704]
[1754803444265,0.63561434,118150.0,118140.0,0.83704]
[1754803444564,0.97625358,118150.0,118140.0,0.83704]
[1754803448360,0.63561434,118150.0,118140.0,0.83704]
[1754803448565,0.97625358,118150.0,118140.0,0.83704]
[1754803449160,1.33705358,118150.0,118140.0,0.82327]
[1754803449359,1.33705358,118150.0,118140.0,0.8375]
[1754803449555,1.33705358,118150.0,118140.0,0.08709237]
[1754803449760,1.33705358,118150.0,118140.0,0.002]
[1754803449958,0.2028395,118140.0,118130.0,0.00024]
[1754803450159,0.90427874,118140.0,118130.0,0.81058]
[1754803450363,0.90427874,118140.0,118130.0,0.82008]
[1754803450560,0.90427874,118140.0,118130.0,0.83431]
[1754803451866,0.90627874,118140.0,118130.0,0.83531]
[1754803453270,0.5538695,118140.0,118130.0,1.25289161]
[1754803453662,0.5686395,118140.0,118130.0,0.91225237]
[1754803453863,0.5206095,118140.0,118130.0,0.99688897]
[1754803454059,0.5111195,118140.0,118130.0,1.33752821]
[1754803454664,0.4730095,118140.0,118130.0,1.33752821]
[1754803454868,0.4730095,118140.0,118130.0,0.99688897]
[1754803455072,0.4730095,118140.0,118130.0,1.33752821]
[1754803455269,0.5062695,118140.0,118130.0,1.33752821]
[1754803457663,0.5224695,118140.0,118130.0,1.33752821]
[1754803457972,0.5226695,118140.0,118130.0,1.33772821]
[1754803458867,0.5226695,118140.0,118130.0,1.41370309]
[1754803460177,0.5445795,118140.0,118130.0,1.41370309]
[1754803462570,0.5445795,118140.0,118130.0,1.07306385]
[1754803462876,0.5445795,118140.0,118130.0,1.41370309]
[1754803463375,0.90947874,118140.0,118130.0,0.98842725]
[1754803463768,0.90947874,118140.0,118130.0,0.91245237]
[1754803464080,0.5688395,118140.0,118130.0,0.99708897]
[1754803464369,0.5688395,118140.0,118130.0,1.07306385]
[1754803467172,0.5688395,118140.0,118130.0,0.99708897]
[1754803469272,0.5688395,118140.0,118130.0,1.07306385]
[1754803469779,0.5688395,118140.0,118130.0,0.99708897]
[1754803470072,0.5688395,118140.0,118130.0,1.07306385]
[1754803470866,0.5688395,118140.0,118130.0,0.98842725]
[1754803471071,0.90947874,118140.0,118130.0,0.91245237]
[1754803471673,0.5688395,118140.0,118130.0,0.91245237]
[1754803471874,0.90947874,118140.0,118130.0,0.91245237]
[1754803473876,0.90947874,118140.0,118130.0,0.98842725]
[1754803474074,0.5688395,118140.0,118130.0,1.07306385]
[1754803474376,0.90947874,118140.0,118130.0,1.07306385]
[1754803475080,0.5688395,118140.0,118130.0,1.07306385]
[1754803475379,0.90947874,118140.0,118130.0,1.07306385]
[1754803476180,0.5688395,118140.0,118130.0,1.07306385]
[1754803476680,0.90947874,118140.0,118130.0,1.07306385]
[1754803477876,0.90947874,118140.0,118130.0,0.98842725]
[1754803478277,0.90947874,118140.0,118130.0,0.17798725]
[1754803478481,0.90947874,118140.0,118130.0,0.98274725]
[1754803481678,0.90947874,118140.0,118130.0,0.98266725]
[1754803481983,0.90947874,118140.0,118130.0,0.90672488]
[1754803487289,0.90947874,118140.0,118130.0,0.99136158]
[1754803487586,0.90947874,118140.0,118130.0,0.90672488]
[1754803487788,0.90947874,118140.0,118130.0,0.99136158]
[1754803488284,0.90947874,118140.0,118130.0,0.90672488]
[1754803492380,0.90947874,118140.0,118130.0,0.87843488]
[1754803492788,1.07999016,118140.0,118130.0,0.87843488]
[1754803493382,1.07999016,118140.0,118130.0,0.89258488]
[1754803493583,1.07999016,118140.0,118130.0,0.90178488]
[1754803493782,1.07999016,118140.0,118130.0,0.08751488]
[1754803493993,1.07999016,118140.0,118130.0,0.87799488]
[1754803494692,1.07999016,118140.0,118130.0,0.88719488]
[1754803495194,1.07999016,118140.0,118130.0,0.82537]
[1754803496187,0.5688395,118140.0,118130.0,0.82537]
[1754803496394,1.07999016,118140.0,118130.0,0.82537]
[1754803497994,1.07999016,118140.0,118130.0,0.90134488]
[1754803498487,1.07999016,118140.0,118130.0,0.82537]
[1754803499285,0.5688395,118140.0,118130.0,0.82537]
[1754803499491,1.07999016,118140.0,118130.0,0.82537]
[1754803502797,1.07999016,118140.0,118130.0,0.10166488]
[1754803502996,1.07999016,118140.0,118130.0,0.90038488]
[1754803503295,1.07999016,118140.0,118130.0,0.90030488]
[1754803503689,1.07999016,118140.0,118130.0,0.82433]
[1754803505395,1.07999016,118140.0,118130.0,0.81018]
[1754803505596,1.07999016,118140.0,118130.0,1.08044533]
[1754803509196,1.44079016,118140.0,118130.0,1.08044533]
[1754803509496,1.44079016,118140.0,118130.0,0.82487]
[1754803509700,1.44079016,118140.0,118130.0,1.08044533]
[1754803510199,1.44079016,118140.0,118130.0,0.82487]
[1754803511501,1.44034016,118140.0,118130.0,0.82487]
[1754803512101,1.44034016,118140.0,118130.0,1.08044533]
[1754803513590,1.44034016,118140.0,118130.0,0.82487]
[1754803514804,1.44034016,118140.0,118130.0,1.1563877]
[1754803515002,1.44034016,118140.0,118130.0,0.90081237]
[1754803516305,1.44034016,118140.0,118130.0,1.1563877]
[1754803517806,1.41062016,118140.0,118130.0,1.1563877]
[1754803519204,1.41062016,118140.0,118130.0,0.90081237]
[1754803519905,1.41062016,118140.0,118130.0,0.10217237]
[1754803520103,1.41062016,118140.0,118130.0,0.88472237]
[1754803520405,1.41062016,118140.0,118130.0,0.89941237]
[1754803522102,0.9307895,118140.0,118130.0,0.89941237]
[1754803522406,1.44194016,118140.0,118130.0,0.10217237]
[1754803522609,1.44194016,118140.0,118130.0,0.89941237]
[1754803524304,0.9307895,118140.0,118130.0,0.89941237]
[1754803524507,1.44194016,118140.0,118130.0,0.90001237]
[1754803526011,1.44194016,118140.0,118130.0,0.97598725]
[1754803526210,1.44194016,118140.0,118130.0,0.90001237]
[1754803528015,1.44194016,118140.0,118130.0,0.97598725]
[1754803529614,1.44194016,118140.0,118130.0,0.17814725]
[1754803529815,1.44194016,118140.0,118130.0,0.97534725]
[1754803530112,1.44194016,118140.0,118130.0,0.17814725]
[1754803530610,1.44194016,118140.0,118130.0,0.97534725]
[1754803532107,1.44194016,118140.0,118130.0,0.17814725]
[1754803532612,1.44194016,118140.0,118130.0,0.97534725]
[1754803532812,0.1690665,118130.0,118120.0,0.02411]
[1754803533008,0.82038183,118130.0,118120.0,0.82121]
[1754803534015,0.82038183,118130.0,118120.0,1.07678533]
[1754803534216,0.82038183,118130.0,118120.0,0.27958533]
[1754803534518,0.82038183,118130.0,118120.0,1.07678533]
[1754803534714,0.09637,118100.0,118090.0,0.15094971]
[1754803534917,0.0846724,118080.0,118070.0,0.19613879]
[1754803535106,0.3734208,118070.0,118060.0,0.10413]
[1754803535306,0.62899613,118070.0,118060.0,0.90133]
[1754803535611,0.62899613,118070.0,118060.0,1.15690533]
[1754803536208,0.1883767,118060.0,118050.0,0.36986533]
[1754803536408,0.34026203,118060.0,118050.0,1.25185923]
[1754803536605,0.0846867,118060.0,118050.0,1.25185923]
[1754803536809,0.0846867,118060.0,118050.0,1.35738902]
[1754803537111,0.0846867,118060.0,118050.0,1.43333139]
[1754803537510,0.0846867,118060.0,118050.0,1.09221134]
[1754803538214,0.0866867,118060.0,118050.0,1.10521134]
[1754803538419,0.0866867,118060.0,118050.0,1.80713139]
[1754803538920,0.0876867,118060.0,118050.0,1.45033139]
[1754803539112,0.0876867,118060.0,118050.0,1.81113139]
[1754803539312,0.0876867,118060.0,118050.0,1.03326897]
[1754803542617,0.003,118060.0,118050.0,1.03326897]
[1754803542822,0.003,118060.0,118050.0,1.45033139]
[1754803543013,0.003,118060.0,118050.0,1.81113139]
[1754803545224,0.0876868,118060.0,118050.0,1.81113139]
[1754803546925,0.0876868,118060.0,118050.0,1.47001134]
[1754803547127,0.0876868,118060.0,118050.0,1.81113139]
[1754803548029,0.003,118060.0,118050.0,1.81113139]
[1754803549526,0.0876871,118060.0,118050.0,1.81113139]
[1754803550423,0.0876871,118060.0,118050.0,1.47001134]
[1754803550628,0.0876871,118060.0,118050.0,1.81113139]
[1754803551734,0.0876871,118060.0,118050.0,1.81145139]
[1754803551923,0.0878871,118060.0,118050.0,1.81165139]
[1754803552124,0.0878871,118060.0,118050.0,1.45085139]
[1754803552325,0.0878871,118060.0,118050.0,1.81165139]
[1754803552926,0.0878871,118060.0,118050.0,1.45085139]
[1754803553127,0.0878871,118060.0,118050.0,1.81165139]
[1754803553433,0.0878871,118060.0,118050.0,1.47053134]
[1754803553628,0.0878871,118060.0,118050.0,1.81165139]
[1754803554030,0.0878871,118060.0,118050.0,1.10973134]
[1754803554232,0.0878871,118060.0,118050.0,1.81165139]
[1754803556236,0.0878871,118060.0,118050.0,1.01413139]
[1754803556534,0.0878871,118060.0,118050.0,1.81161139]
[1754803558036,0.0878871,118060.0,118050.0,1.47049134]
[1754803558335,0.0878871,118060.0,118050.0,1.81161139]
[1754803558738,0.0878871,118060.0,118050.0,1.47049134]
[1754803559131,0.0878871,118060.0,118050.0,1.81161139]
[1754803560332,0.0878871,118060.0,118050.0,1.01413139]
[1754803560528,0.0878871,118060.0,118050.0,1.47049134]
[1754803560834,0.0878871,118060.0,118050.0,1.81161139]
[1754803561434,0.0878871,118060.0,118050.0,1.47049134]
[1754803561632,0.0878871,118060.0,118050.0,1.81161139]
[1754803564554,0.0878871,118060.0,118050.0,1.45081139]
[1754803564752,0.0878871,118060.0,118050.0,1.47049134]
[1754803564945,0.0878871,118060.0,118050.0,1.45081139]
[1754803565452,0.0878871,118060.0,118050.0,1.81161139]
[1754803565751,0.0878871,118060.0,118050.0,1.01413139]
[1754803565952,0.0878871,118060.0,118050.0,1.81153139]
[1754803566137,0.0878871,118060.0,118050.0,1.01413139]
[1754803566344,0.0878871,118060.0,118050.0,1.81153139]
[1754803566650,0.34370247,118060.0,118050.0,1.72622671]
[1754803566840,0.0878871,118060.0,118050.0,1.72622671]
[1754803569352,0.34370247,118060.0,118050.0,1.72622671]
[1754803569553,0.0878871,118060.0,118050.0,0.92882671]
[1754803569756,0.0878871,118060.0,118050.0,1.72622671]
[1754803574253,0.1693385,118090.0,118080.0,0.03727]
[1754803574457,0.1693385,118090.0,118080.0,1.50964404]
[1754803574658,0.5549923,118100.0,118090.0,0.2006861]
[1754803574844,0.5301223,118100.0,118090.0,0.54154091]
[1754803575049,0.084659,118100.0,118090.0,0.54154091]
[1754803575249,0.18837934,118110.0,118100.0,0.200679]
[1754803575450,0.27313414,118110.0,118100.0,1.33881381]
[1754803575846,0.18847934,118110.0,118100.0,1.33881381]
[1754803577362,0.10382484,118110.0,118100.0,1.41475618]
[1754803577564,0.10482484,118110.0,118100.0,1.42375618]